{"text_format":"1","workbook":"xlsx","n_sheets":8,"sheets":["Vejledning","Lærere Ny Løn","Lærere OK ansatte anc.løn","Lærere Tjenestemænd","Bh. kl. ledere Ny Løn ","Bh. kl. ledere Anc. løn","Bh. kl. ledere tjenestemænd","satser"],"not_rendered":{"charts":0,"images":0,"macros":1,"external_links":0,"defined_names":0,"comments":7,"pivot_tables":0},"unopened":[],"bounds":{"document_bytes":16777216,"sheet_cells":100000,"rows_first":2000,"rows_last":500,"rows_between":2000,"halvings":0,"cell_chars":16384,"cell_head_chars":4096},"cells_cut":0,"cells_raw":0,"read":"whole","date_system":"1900"}

{"sheet":"Vejledning","index":0,"n_rows":33,"n_cols":1,"rows_kept":33,"cut":false,"hidden":false,"merged":[]}
["Vejledning til regneark, lønberegning."]
[]
["Regnearket anvendes til kontrol af lønsedler . Man skal bruge sin lønseddel og opgaveoversigten"]
["Regnearket kan anvendes af lærere og børnehaveklasseledere ansat på folkeskoler i Odense."]
["Medlemmer ansat andre steder kan få hjælp til at kontrollere deres lønsedler i Odense Lærerforening"]
[]
[]
["Find det relevante ark i regnearket"]
["(Lærere Ny Løn, Lærere OK ansatte anc. Løn, Lærere tjenestemænd,"]
["Børnehaveklasseledere Ny Løn, Børnehaveklasseledere anc. Løn, "]
["Børnehaveklasseledere tjenestemænd)"]
[]
["Der kan kun indtastes i de gule felter!"]
[]
["Beskæftigelsesgrad indtastes med ugentligt timetal (fremgår af lønsedlen)"]
["Grundløn fremkommer automatisk, tillæg for anciennitet skal indtastes med 1 ved relevant anciennitetstillæg (fremgår af lønsedlen)"]
["Forhåndsaftalt funktions- og kvalifikationsløn indtastes med 1 ud for funktionen (kvalifikationen)"]
["Ved delt funktion anvendes decimaltal."]
["Odensetillæg fremgår automatisk"]
[]
["Skoleaftaler og andet, der ikke er nævnt i regnearket indtastes med det månedlige beløb, der fremgår af lønsedlen."]
["Der kan evt. indtastes navn på disse tillæg."]
[]
["Undervisningstillæg, specialundervisningstillæg m.m. indtastes i de relevante felter med det årlige undervisningstimetal"]
["Timetallet fremgår af opgaveoversigten"]
[]
["Månedslønnen fremkommer automatisk og er sammenlignelig med lønsedlen"]
[]
["Bemærk: Der kan fremkomme øreafvigelser p.g.a. afrunding."]
[]
["Arbejdstidsbestemte tillæg udbetales konkret og fremgår ikke af lønberegneren"]
[]
["Kommentarer eller rettelser er velkomne, kontakt Bo Tryggedsson, Odense Lærerforening."]

{"sheet":"Lærere Ny Løn","index":1,"n_rows":43,"n_cols":3,"rows_kept":43,"cut":false,"hidden":false,"merged":[[1,0,2,2],[0,0,0,1]]}
["Lønberegning niveau",null,{"$f":"satser!F1","v":"01.08.2019"}]
["Lærere Ny løn"]
[]
[]
["Navn:"]
["Måned"]
[]
["Beskæftigelsesgrad (indsæt ugentligt timetal)",37]
[null,null,"Månedsløn"]
["Grundløn trin 31",31,{"$f":"satser!B11*B8/37","v":27705.416666666668}]
["Grundlønstillæg - lærer",null,{"$f":"IF(B14=1,\"\",satser!I3*B8/37)","v":344.31324999999998}]
["Lærere på grundløn",null,{"$f":"IF((B12+B13+B14)>1,\"Fejl: kun et tillæg\",IF(B12=1,satser!D12*B8/37,\"\"))","v":""}]
["Anciennitetstillæg (trin 31-35)",null,{"$f":"IF((B12+B13+B14)>1,\"Fejl: kun et tillæg\",IF(B13=1,satser!D15*B8/37,\"\"))","v":""}]
["Anciennitetstillæg (trin 31-40)",null,{"$f":"IF((B12+B13+B14)>1,\"Fejl: kun et tillæg\",IF(B14=1,satser!D20*B8/37,\"\"))","v":""}]
["Anciennitetstillæg - lærer",null,{"$f":"IF(AND(B15=1,B14=1),satser!I4*B8/37,\"\")","v":""}]
["Undervisertillæg",null,{"$f":"satser!I8*B8/37","v":1492.0240833333335}]
[]
["Funktions- og kvalifikationsløn: Tast 1 i det gule felt, hvis omfattet:"]
["Nyt Odense tillæg",null,{"$f":"satser!I20*B8/37","v":1273.96}]
["Kl. lærer/bh.kl.leder >27",null,{"$f":"(IF(B20>1,\"Fejl:kun et tillæg\",IF(B20>0,B20*satser!I21,\"\")))","v":""}]
["Kontaktperson til elevråd",null,{"$f":"(IF(B21>1,\"Fejl:kun et tillæg\",IF(B21>0,B21*satser!I22,\"\")))","v":""}]
["Obs-klasser",null,{"$f":"(IF(B22>1,\"Fejl:kun et tillæg\",IF(B22>0,B22*satser!I23*B8/37,\"\")))","v":""}]
["Flere/skiftende arbejdssteder",null,{"$f":"(IF(B23>1,\"Fejl:kun et tillæg\",IF(B23>0,B23*satser!I24*B8/37,\"\")))","v":""}]
["TR-tillæg",null,{"$f":"(IF(B24>1,\"Fejl:kun et tillæg\",IF(B24>0,B24*satser!I25,\"\")))","v":""}]
["Valgområde - mere end 35 ansatte",null,{"$f":"(IF(B25>1,\"Fejl:kun et tillæg\",IF(B25>0,B25*satser!I26,\"\")))","v":""}]
["AMR funktion",null,{"$f":"(IF(B26>1,\"Fejl:kun et tillæg\",IF(B26>0,B26*satser!I27,\"\")))","v":""}]
["Spec-uv skolebørn",null,{"$f":"(IF(B27>1,\"Fejl:kun et tillæg\",IF(B27>0,B27*satser!I28,\"\")))","v":""}]
[]
["Specialv./erfaring fra Vollsmose skoler",null,{"$f":"(IF(B29>1,\"Fejl:kun et tillæg\",IF(B29>0,B29*satser!I30*B8/37,\"\")))","v":""}]
["Pæd. Diplomudd./Masterudd.",null,{"$f":"(IF(B30>1,\"Fejl:kun et tillæg\",IF(B30>0,B30*satser!I31*B8/37,\"\")))","v":""}]
[]
["Undervisnings- og specialundervisningstillæg m.m. Indsæt tal fra opgaveoversigten i de gule felter"]
["I alt undervisning "]
["uv-tillæg > 750",{"$f":"(IF((B33/B8*37)>750,((B33/B8*37)-750)*B8/37,0))/12","v":0},{"$f":"IF(B34>0,B34*satser!I35,\"\")","v":""}]
["uv-tillæg > 780",{"$f":"(IF((B33/B8*37)>780,((B33/B8*37)-780)*B8/37,0))/12","v":0},{"$f":"IF(B35>0,B35*satser!I36,\"\")","v":""}]
["tale/høre tillæg",null,{"$f":"IF(B36>0,(B36/12)*satser!I37,\"\")","v":""}]
["Spec-skole uv-tillæg",null,{"$f":"IF(B37>0,(B37/12)*satser!I38,\"\")","v":""}]
[]
["Andre tillæg (fx skoleaftaler) Indtast beløb fra lønseddel"]
[]
[]
[]
["Fast løn i alt",null,{"$f":"SUM(C10:C42)","v":30815.714}]

{"sheet":"Lærere OK ansatte anc.løn","index":2,"n_rows":43,"n_cols":3,"rows_kept":43,"cut":false,"hidden":false,"merged":[[1,0,2,2],[0,0,0,1]]}
["Lønberegning niveau ",null,{"$f":"satser!F1","v":"01.08.2019"}]
["Lærere OK ansatte anc. Løn"]
[]
[]
["Navn: "]
["Måned"]
[]
["Beskæftigelsesgrad (indsæt ugentligt timetal)",37]
[]
[null,null,"Månedsløn"]
["Grundløn trin 43",43,{"$f":"satser!B23*B8/37","v":33955}]
["Stillingstillæg - lærer",null,{"$f":"satser!I5*B8/37","v":1492.0240833333335}]
["Undervisertillæg",null,{"$f":"satser!I9*B8/37","v":631.24095833333342}]
[]
[]
[]
[]
["Funktions- og kvalifikationsløn: Tast 1 i det gule felt, hvis omfattet:"]
["Nyt Odense tillæg",null,{"$f":"satser!I20*B8/37","v":1273.96}]
["Kl. lærer/bh.kl.leder >27",null,{"$f":"(IF(B20>1,\"Fejl:kun et tillæg\",IF(B20>0,B20*satser!J21,\"\")))","v":""}]
["Kontaktperson til elevråd",null,{"$f":"(IF(B21>1,\"Fejl:kun et tillæg\",IF(B21>0,B21*satser!J22,\"\")))","v":""}]
["Obs-klasser",null,{"$f":"(IF(B22>1,\"Fejl:kun et tillæg\",IF(B22>0,B22*satser!J23*B8/37,\"\")))","v":""}]
["Flere/skiftende arbejdssteder",null,{"$f":"(IF(B23>1,\"Fejl:kun et tillæg\",IF(B23>0,B23*satser!J24*B8/37,\"\")))","v":""}]
["TR-tillæg",null,{"$f":"(IF(B24>1,\"Fejl:kun et tillæg\",IF(B24>0,B24*satser!J25,\"\")))","v":""}]
["Valgområde - mere end 35 ansatte",null,{"$f":"(IF(B25>1,\"Fejl:kun et tillæg\",IF(B25>0,B25*satser!J26,\"\")))","v":""}]
["AMR funktion",null,{"$f":"(IF(B26>1,\"Fejl:kun et tillæg\",IF(B26>0,B26*satser!J27,\"\")))","v":""}]
["Spec-uv skolebørn",null,{"$f":"(IF(B27>1,\"Fejl:kun et tillæg\",IF(B27>0,B27*satser!J28,\"\")))","v":""}]
[]
["Specialv./erfaring fra Vollsmose skoler",null,{"$f":"(IF(B29>1,\"Fejl:kun et tillæg\",IF(B29>0,B29*satser!J30*B8/37,\"\")))","v":""}]
["Pæd. Diplomudd./Masterudd.",null,{"$f":"(IF(B30>1,\"Fejl:kun et tillæg\",IF(B30>0,B30*satser!J31*B8/37,\"\")))","v":""}]
[]
["Undervisnings- og specialundervisningstillæg m.m. Indsæt tal fra opgaveoversigten i de gule felter"]
["I alt undervisning "]
["uv-tillæg > 750",{"$f":"(IF((B33/B8*37)>750,((B33/B8*37)-750)*B8/37,0))/12","v":0},{"$f":"IF(B34>0,B34*satser!J35,\"\")","v":""}]
["uv-tillæg > 780",{"$f":"(IF((B33/B8*37)>780,((B33/B8*37)-780)*B8/37,0))/12","v":0},{"$f":"IF(B35>0,B35*satser!J36,\"\")","v":""}]
["tale/høre tillæg",null,{"$f":"IF(B36>0,(B36/12)*satser!J37,\"\")","v":""}]
["Spec-skole uv-tillæg",null,{"$f":"IF(B37>0,(B37/12)*satser!J38,\"\")","v":""}]
[]
["Andre tillæg (fx skoleaftaler) Indtast beløb fra lønseddel"]
[]
[" "]
[]
["Fast løn i alt",null,{"$f":"SUM(C10:C42)","v":37352.225041666665}]

{"sheet":"Lærere Tjenestemænd","index":3,"n_rows":43,"n_cols":3,"rows_kept":43,"cut":false,"hidden":false,"merged":[[1,0,2,2],[0,0,0,1]]}
["Lønberegning niveau",null,{"$f":"satser!F1","v":"01.08.2019"}]
["Lærere Tjenestemænd"]
[]
[]
["Navn: "]
["Måned"]
[]
["Beskæftigelsesgrad (indsæt ugentligt timetal)",37]
[]
[null,null,"Månedsløn"]
["Grundløn trin 43",43,{"$f":"satser!B23*B8/37","v":33955}]
["Stillingstillæg - lærer",null,{"$f":"satser!I5*B8/37","v":1492.0240833333335}]
["Pension - stillingstillæg lærer ",null,{"$f":"IF(B13=1,satser!I6,\"\")","v":""}]
["Undervisertillæg",null,{"$f":"satser!I9*B8/37","v":631.24095833333342}]
[]
[]
[]
["Funktions- og kvalifikationsløn: Tast 1 i det gule felt, hvis omfattet:"]
["Nyt Odense tillæg",null,{"$f":"satser!I20*B8/37","v":1273.96}]
["Kl. lærer/bh.kl.leder >27",null,{"$f":"(IF(B20>1,\"Fejl:kun et tillæg\",IF(B20>0,B20*satser!J21,\"\")))","v":""}]
["Kontaktperson til elevråd",null,{"$f":"(IF(B21>1,\"Fejl:kun et tillæg\",IF(B21>0,B21*satser!J22,\"\")))","v":""}]
["Obs-klasser",null,{"$f":"(IF(B22>1,\"Fejl:kun et tillæg\",IF(B22>0,B22*satser!J23*B8/37,\"\")))","v":""}]
["Flere/skiftende arbejdssteder",null,{"$f":"(IF(B23>1,\"Fejl:kun et tillæg\",IF(B23>0,B23*satser!J24*B8/37,\"\")))","v":""}]
["TR-tillæg",null,{"$f":"(IF(B24>1,\"Fejl:kun et tillæg\",IF(B24>0,B24*satser!J25,\"\")))","v":""}]
["Valgområde - mere end 35 ansatte",null,{"$f":"(IF(B25>1,\"Fejl:kun et tillæg\",IF(B25>0,B25*satser!J26,\"\")))","v":""}]
["AMR funktion",null,{"$f":"(IF(B26>1,\"Fejl:kun et tillæg\",IF(B26>0,B26*satser!J27,\"\")))","v":""}]
["Spec-uv skolebørn",null,{"$f":"(IF(B27>1,\"Fejl:kun et tillæg\",IF(B27>0,B27*satser!J28,\"\")))","v":""}]
[]
["Specialv./erfaring fra Vollsmose skoler",null,{"$f":"(IF(B29>1,\"Fejl:kun et tillæg\",IF(B29>0,B29*satser!J30*B8/37,\"\")))","v":""}]
["Pæd. Diplomudd./Masterudd.",null,{"$f":"(IF(B30>1,\"Fejl:kun et tillæg\",IF(B30>0,B30*satser!D24*B8/37,\"\")))","v":""}]
[]
["Undervisnings- og specialundervisningstillæg m.m. Indsæt tal fra opgaveoversigten i de gule felter"]
["I alt undervisning "]
["uv-tillæg > 750",{"$f":"(IF((B33/B8*37)>750,((B33/B8*37)-750)*B8/37,0))/12","v":0},{"$f":"IF(B34>0,B34*satser!J35,\"\")","v":""}]
["uv-tillæg > 780",{"$f":"(IF((B33/B8*37)>780,((B33/B8*37)-780)*B8/37,0))/12","v":0},{"$f":"IF(B35>0,B35*satser!J36,\"\")","v":""}]
["tale/høre tillæg",null,{"$f":"IF(B36>0,(B36/12)*satser!J37,\"\")","v":""}]
["Spec-skole uv-tillæg",null,{"$f":"IF(B37>0,(B37/12)*satser!J38,\"\")","v":""}]
[]
["Andre tillæg (fx skoleaftaler) Indtast beløb fra lønseddel"]
[]
[" "]
[]
["Fast løn i alt",null,{"$f":"SUM(C10:C42)","v":37352.225041666665}]

{"sheet":"Bh. kl. ledere Ny Løn ","index":4,"n_rows":43,"n_cols":3,"rows_kept":43,"cut":false,"hidden":false,"merged":[[1,0,2,2],[0,0,0,1]]}
["Lønberegning niveau",null,{"$f":"satser!F1","v":"01.08.2019"}]
["Børnehaveklasseledere Ny løn"]
[]
[]
["Navn: "]
["Måned"]
[]
["Beskæftigelsesgrad (indsæt ugentligt timetal)",37]
[null,null,"Månedsløn"]
["Grundløn trin 28",28,{"$f":"satser!B8*B8/37","v":26419.416666666668}]
["Grundlønstillæg - børnehaveklasseleder",null,{"$f":"IF(B14=1,\"\",IF(B15=1,\"\",satser!I7*B8/37))","v":229.5421666666667}]
[]
["Anciennitetstillæg (trin 28-31)",null,{"$f":"IF((B13+B14+B15)>1,\"Fejl: kun et tillæg\",IF(B13=1,satser!D11*B8/37,\"\"))","v":""}]
["Anciennitetstillæg (trin 28-33)",null,{"$f":"IF((B13+B14+B15)>1,\"Fejl: kun et tillæg\",IF(B14=1,satser!D13*B8/37,\"\"))","v":""}]
["Anciennitetstillæg (trin 28-37)",null,{"$f":"IF((B13+B14+B15)>1,\"Fejl: kun et tillæg\",IF(B15=1,satser!D18*B8/37,\"\"))","v":""}]
["Undervisertillæg",null,{"$f":"satser!I10*B8/37","v":1767.4746833333336}]
[]
["Funktions- og kvalifikationsløn: Tast 1 i det gule felt, hvis omfattet:"]
["Nyt Odense tillæg",null,{"$f":"satser!I20*B8/37","v":1273.96}]
["Kl. lærer/bh.kl.leder >27",null,{"$f":"(IF(B20>1,\"Fejl:kun et tillæg\",IF(B20>0,B20*satser!I21,\"\")))","v":""}]
["Kontaktperson til elevråd",null,{"$f":"(IF(B21>1,\"Fejl:kun et tillæg\",IF(B21>0,B21*satser!I22,\"\")))","v":""}]
["Obs-klasser",null,{"$f":"(IF(B22>1,\"Fejl:kun et tillæg\",IF(B22>0,B22*satser!I23*B8/37,\"\")))","v":""}]
["Flere/skiftende arbejdssteder",null,{"$f":"(IF(B23>1,\"Fejl:kun et tillæg\",IF(B23>0,B23*satser!I24*B8/37,\"\")))","v":""}]
["TR-tillæg",null,{"$f":"(IF(B24>1,\"Fejl:kun et tillæg\",IF(B24>0,B24*satser!I25,\"\")))","v":""}]
["Valgområde - mere end 35 ansatte",null,{"$f":"(IF(B25>1,\"Fejl:kun et tillæg\",IF(B25>0,B25*satser!I26,\"\")))","v":""}]
["AMR funktion",null,{"$f":"(IF(B26>1,\"Fejl:kun et tillæg\",IF(B26>0,B26*satser!I27,\"\")))","v":""}]
["Spec-uv skolebørn",null,{"$f":"(IF(B27>1,\"Fejl:kun et tillæg\",IF(B27>0,B27*satser!I28,\"\")))","v":""}]
[]
["Specialv./erfaring fra Vollsmose skoler",null,{"$f":"(IF(B29>1,\"Fejl:kun et tillæg\",IF(B29>0,B29*satser!I30*B8/37,\"\")))","v":""}]
["Pæd. Diplomudd./Masterudd.",null,{"$f":"(IF(B30>1,\"Fejl:kun et tillæg\",IF(B30>0,B30*satser!I31*B8/37,\"\")))","v":""}]
[]
["Undervisnings- og specialundervisningstillæg m.m. Indsæt tal fra opgaveoversigten i de gule felter"]
["I alt undervisning "]
["uv-tillæg > 836",{"$f":"(IF((B33/B8*37)>835,((B33/B8*37)-835)*B8/37,0))/12","v":0},{"$f":"IF(B34>0,B34*satser!I35,\"\")","v":""}]
["tale/høre tillæg",null,{"$f":"IF(B35>0,(B35/12)*satser!I37,\"\")","v":""}]
["Spec-skole uv-tillæg",null,{"$f":"IF(B36>0,(B36/12)*satser!I38,\"\")","v":""}]
["to-sprogede elever",null,{"$f":"IF(B37>0,(B37/12)*satser!I40,\"\")","v":""}]
[]
["Andre tillæg (fx skoleaftaler) Indtast beløb fra lønseddel"]
[]
[" "]
[]
["Fast løn i alt",null,{"$f":"SUM(C10:C42)","v":29690.393516666667}]

{"sheet":"Bh. kl. ledere Anc. løn","index":5,"n_rows":44,"n_cols":3,"rows_kept":44,"cut":false,"hidden":false,"merged":[[1,0,2,2],[0,0,0,1]]}
["Lønberegning niveau",null,{"$f":"satser!F1","v":"01.08.2019"}]
["Børnehaveklasseledere anc. Løn"]
[]
[]
["Navn: "]
["Måned"]
[]
["Beskæftigelsesgrad (indsæt ugentligt timetal)",37]
[null,null,"Månedsløn"]
["Grundløn trin 36",36,{"$f":"satser!B16*B8/37","v":30031.583333333332}]
["Trintillæg",null,{"$f":"satser!I12*B8/37","v":527.94698333333338}]
["Undervisertillæg",null,{"$f":"satser!I11*B8/37","v":1767.4746833333336}]
[]
[]
[]
[]
[]
[]
["Funktions- og kvalifikationsløn: Tast 1 i det gule felt, hvis omfattet:"]
["Nyt Odense tillæg",null,{"$f":"satser!I20*B8/37","v":1273.96}]
["Kl. lærer/bh.kl.leder >27",null,{"$f":"(IF(B21>1,\"Fejl:kun et tillæg\",IF(B21>0,B21*satser!J21,\"\")))","v":""}]
["Kontaktperson til elevråd",null,{"$f":"(IF(B22>1,\"Fejl:kun et tillæg\",IF(B22>0,B22*satser!J22,\"\")))","v":""}]
["Obs-klasser",null,{"$f":"(IF(B23>1,\"Fejl:kun et tillæg\",IF(B23>0,B23*satser!J23*B8/37,\"\")))","v":""}]
["Flere/skiftende arbejdssteder",null,{"$f":"(IF(B24>1,\"Fejl:kun et tillæg\",IF(B24>0,B24*satser!J24*B8/37,\"\")))","v":""}]
["TR-tillæg",null,{"$f":"(IF(B25>1,\"Fejl:kun et tillæg\",IF(B25>0,B25*satser!J25,\"\")))","v":""}]
["Valgområde - mere end 35 ansatte",null,{"$f":"(IF(B26>1,\"Fejl:kun et tillæg\",IF(B26>0,B26*satser!J26,\"\")))","v":""}]
["AMR funktion",null,{"$f":"(IF(B27>1,\"Fejl:kun et tillæg\",IF(B27>0,B27*satser!J27,\"\")))","v":""}]
["Spec-uv skolebørn",null,{"$f":"(IF(B28>1,\"Fejl:kun et tillæg\",IF(B28>0,B28*satser!J28,\"\")))","v":""}]
[]
["Specialv./erfaring fra Vollsmose skoler",null,{"$f":"(IF(B30>1,\"Fejl:kun et tillæg\",IF(B30>0,B30*satser!J30*B8/37,\"\")))","v":""}]
["Pæd. Diplomudd./Masterudd.",null,{"$f":"(IF(B31>1,\"Fejl:kun et tillæg\",IF(B31>0,B31*satser!J31*B8/37,\"\")))","v":""}]
[]
["Undervisnings- og specialundervisningstillæg m.m. Indsæt tal fra opgaveoversigten i de gule felter"]
["I alt undervisning "]
["uv-tillæg > 836",{"$f":"(IF((B34/B8*37)>835,((B34/B8*37)-835)*B8/37,0))/12","v":0},{"$f":"IF(B35>0,B35*satser!J35,\"\")","v":""}]
["tale/høre tillæg",null,{"$f":"IF(B36>0,(B36/12)*satser!J37,\"\")","v":""}]
["Spec-skole uv-tillæg",null,{"$f":"IF(B37>0,(B37/12)*satser!J38,\"\")","v":""}]
["to-sprogede elever",null,{"$f":"IF(B38>0,(B38/12)*satser!J40,\"\")","v":""}]
[]
["Andre tillæg (fx skoleaftaler) Indtast beløb fra lønseddel"]
[]
[" "]
[]
["Fast løn i alt",null,{"$f":"SUM(C10:C43)","v":33600.965000000004}]

{"sheet":"Bh. kl. ledere tjenestemænd","index":6,"n_rows":44,"n_cols":3,"rows_kept":44,"cut":false,"hidden":false,"merged":[[1,0,2,2],[0,0,0,1]]}
["Lønberegning niveau",null,{"$f":"satser!F1","v":"01.08.2019"}]
["Børnehaveklasseledere tjenestemænd"]
[]
[]
["Navn: "]
["Måned"]
[]
["Beskæftigelsesgrad (indsæt ugentligt timetal)",37]
[null,null,"Månedsløn"]
["Grundløn trin 36",36,{"$f":"satser!B16*B8/37","v":30031.583333333332}]
["Trintillæg",null,{"$f":"satser!I12*B8/37","v":527.94698333333338}]
["Undervisertillæg",null,{"$f":"satser!I11*B8/37","v":1767.4746833333336}]
[]
[]
[]
[]
[]
[]
["Funktions- og kvalifikationsløn: Tast 1 i det gule felt, hvis omfattet:"]
["Nyt Odense tillæg",null,{"$f":"satser!I20*B8/37","v":1273.96}]
["Kl. lærer/bh.kl.leder >27",null,{"$f":"(IF(B21>1,\"Fejl:kun et tillæg\",IF(B21>0,B21*satser!J21,\"\")))","v":""}]
["Kontaktperson til elevråd",null,{"$f":"(IF(B22>1,\"Fejl:kun et tillæg\",IF(B22>0,B22*satser!J22,\"\")))","v":""}]
["Obs-klasser",null,{"$f":"(IF(B23>1,\"Fejl:kun et tillæg\",IF(B23>0,B23*satser!J23*B8/37,\"\")))","v":""}]
["Flere/skiftende arbejdssteder",null,{"$f":"(IF(B24>1,\"Fejl:kun et tillæg\",IF(B24>0,B24*satser!J24*B8/37,\"\")))","v":""}]
["TR-tillæg",null,{"$f":"(IF(B25>1,\"Fejl:kun et tillæg\",IF(B25>0,B25*satser!J25,\"\")))","v":""}]
["Valgområde - mere end 35 ansatte",null,{"$f":"(IF(B26>1,\"Fejl:kun et tillæg\",IF(B26>0,B26*satser!J26,\"\")))","v":""}]
["AMR funktion",null,{"$f":"(IF(B27>1,\"Fejl:kun et tillæg\",IF(B27>0,B27*satser!J27,\"\")))","v":""}]
["Spec-uv skolebørn",null,{"$f":"(IF(B28>1,\"Fejl:kun et tillæg\",IF(B28>0,B28*satser!J28,\"\")))","v":""}]
[]
["Specialv./erfaring fra Vollsmose skoler",null,{"$f":"(IF(B30>1,\"Fejl:kun et tillæg\",IF(B30>0,B30*satser!J30*B8/37,\"\")))","v":""}]
["Pæd. Diplomudd./Masterudd.",null,{"$f":"(IF(B31>1,\"Fejl:kun et tillæg\",IF(B31>0,B31*satser!D17*B8/37,\"\")))","v":""}]
[]
["Undervisnings- og specialundervisningstillæg m.m. Indsæt tal fra opgaveoversigten i de gule felter"]
["I alt undervisning "]
["uv-tillæg > 836",{"$f":"(IF((B34/B8*37)>835,((B34/B8*37)-835)*B8/37,0))/12","v":0},{"$f":"IF(B35>0,B35*satser!J35,\"\")","v":""}]
["tale/høre tillæg",null,{"$f":"IF(B36>0,(B36/12)*satser!J37,\"\")","v":""}]
["Spec-skole uv-tillæg",null,{"$f":"IF(B37>0,(B37/12)*satser!J38,\"\")","v":""}]
["to-sprogede elever",null,{"$f":"IF(B38>0,(B38/12)*satser!J40,\"\")","v":""}]
[]
["Andre tillæg (fx skoleaftaler) Indtast beløb fra lønseddel"]
[]
[" "]
[]
["Fast løn i alt",null,{"$f":"SUM(C10:C43)","v":33600.965000000004}]

{"sheet":"satser","index":7,"n_rows":40,"n_cols":11,"rows_kept":40,"cut":false,"hidden":false,"merged":[[0,0,0,4],[18,10,18,11],[17,6,17,7],[1,6,1,7],[2,2,2,3],[6,2,6,3]]}
["Satser pr. ",null,null,null,null,"01.08.2019"]
[null,null,null,null,null,null,"Grundbeløb",null,"Månedligt beløb pr.",{"$f":"F1","v":"01.08.2019"}]
[null,null,null,null,null,"Grundlønstillæg - lærer",3000,null,{"$f":"G3*C27/12","v":344.31324999999998}]
[null,null,null,null,null,"Anciennitetstillæg - lærer",10000,null,{"$f":"G4*C27/12","v":1147.7108333333333}]
[null,null,null,null,null,"Stillingstillæg - lærer",null,13000,{"$f":"H5*C27/12","v":1492.0240833333335}]
[null,null,null,null,null,"Pension - stillingstilæg lærer",null,2202,{"$f":"H6*C27/12","v":252.72592550000002},"Beløbet er 17,3% af 13.000 fratrukket særlig ferie"]
["Løntrin ","Pr. måned","Anciennitetstillæg",null,null,"Grundlønstillæg - børnehaveklasseleder",2000,null,{"$f":"G7*C27/12","v":229.5421666666667}]
[28,26419.416666666668,null,null,null,"Undervisertillæg, lærere Ny Løn",13000,null,{"$f":"G8*C27/12","v":1492.0240833333335}]
[29,26839.416666666668,null,null,null,"Undervisertillæg, lærere Anciennitetsløn",5500,null,{"$f":"G9*C27/12","v":631.24095833333342}]
[30,27267.75,null,null,null,"Undervisertillæg, børehaveklasseledere, Ny Løn",15400,null,{"$f":"G10*C27/12","v":1767.4746833333336}]
[31,27705.416666666668,"28 . 31",{"$f":"B11-B8","v":1286},null,"Undervisertillæg, børehaveklasseledere, Anciennitetsløn",15400,null,{"$f":"G11*C27/12","v":1767.4746833333336}]
[32,28151.916666666668,"31 - 32",{"$f":"B12-B11","v":446.5},null,"Trintillæg børnehaveklasseledere",4600,null,{"$f":"G12*C27/12","v":527.94698333333338}]
[33,28607.416666666668,"28 - 33",{"$f":"B13-B8","v":2188}]
[34,29072.75]
[35,29547.166666666668,"31 - 35",{"$f":"B15-B11","v":1841.75}]
[36,30031.583333333332]
[37,30525.5,"36 - 37",{"$f":"B17-B16","v":493.91666666666788}]
[38,31052.5,"28-37",{"$f":"B17-B8","v":4106.0833333333321},null,null,"Grundbeløb",null,"Månedligt beløb pr.",{"$f":"F1","v":"01.08.2019"}]
[39,31577.333333333332,null,null,null,"Funktions- og kvalifikationsløn: ","Ny Løn","Anciennitetsløn","Ny Løn","Anciennitetsløn"]
[40,32113.083333333332,"31 - 40",{"$f":"B20-B11","v":4407.6666666666642},null,"Nyt Odense tillæg",11100,11100,{"$f":"ROUND(G20*$C$27/12,2)","v":1273.96},{"$f":"ROUND(H20*$C$27/12,2)","v":1273.96}]
[41,32659.5,null,null,null,"Kl. lærer/bh.kl.leder >27",4200,3100,{"$f":"ROUND(G21*$C$27/12,2)","v":482.04},{"$f":"ROUND(H21*$C$27/12,2)","v":355.79}]
[42,33216.833333333336,null,null,null,"Kontaktperson til elevråd",3100,3100,{"$f":"ROUND(G22*$C$27/12,2)","v":355.79},{"$f":"ROUND(H22*$C$27/12,2)","v":355.79}]
[43,33955,null,null,null,"Obs-klasser",4200,4200,{"$f":"ROUND(G23*$C$27/12,2)","v":482.04},{"$f":"ROUND(H23*$C$27/12,2)","v":482.04}]
[44,34713.666666666664,"43 - 44",{"$f":"B24-B23","v":758.66666666666424},null,"Flere/skiftende arbejdssteder",3100,3100,{"$f":"ROUND(G24*$C$27/12,2)","v":355.79},{"$f":"ROUND(H24*$C$27/12,2)","v":355.79}]
[null,null,null,null,null,"TR-tillæg op til 35 ansatte",5350,5350,{"$f":"ROUND(G25*$C$27/12,2)","v":614.03},{"$f":"ROUND(H25*$C$27/12,2)","v":614.03}]
[null,null,null,null,null,"Valgområde - mere end 35 ansatte",650,650,{"$f":"ROUND(G26*$C$27/12,2)","v":74.599999999999994},{"$f":"ROUND(H26*$C$27/12,2)","v":74.599999999999994}]
["Reguleringsfaktor:",null,1.3772530000000001,null,null,"AMR funktion",5350,5350,{"$f":"ROUND(G27*$C$27/12,2)","v":614.03},{"$f":"ROUND(H27*$C$27/12,2)","v":614.03}]
[null,null,null,null,null,"Spec-uv skolebørn",18600,18600,{"$f":"ROUND(G28*$C$27/12,2)","v":2134.7399999999998},{"$f":"ROUND(H28*$C$27/12,2)","v":2134.7399999999998}]
[]
[null,null,null,null,null,"Specialv./erfaring fra Vollsmose skoler",3600,3600,{"$f":"ROUND(G30*$C$27/12,2)","v":413.18},{"$f":"ROUND(H30*$C$27/12,2)","v":413.18}]
[null,null,null,null,null,"Pæd. Diplomudd./Masterudd.",7500,7500,{"$f":"ROUND(G31*$C$27/12,2)","v":860.78},{"$f":"ROUND(H31*$C$27/12,2)","v":860.78},"Tjenestemænd dog 1 trin"]
[]
[]
[null,null,null,null,null,"Undervisnings- og specialundervisningstillæg m.m. "]
[null,null,null,null,null,"uv-tillæg > 750",90,90,{"$f":"ROUND(G35*$C$27,2)","v":123.95},123.95]
[null,null,null,null,null,"uv-tillæg > 780",90,90,123.95,{"$f":"ROUND(H36*$C$27,2)","v":123.95}]
[null,null,null,null,null,"tale/høre tillæg",25.84,25.84,35.590000000000003,35.590000000000003]
[null,null,null,null,null,"Spec-skole uv-tillæg",18.920000000000002,18.920000000000002,26.06,26.06]
[]
[null,null,null,null,null,"to-sprogede elever",18.920000000000002,18.920000000000002,{"$f":"ROUND(G40*$C$27,2)","v":26.06},{"$f":"ROUND(H40*$C$27,2)","v":26.06}]